fUSD/lending_fUSD_20240425
["ID","MTS","AMOUNT","RATE_DAILY","PERIOD"]
[323549964,1714083037025,-500.0,0.00010958,2]
[323549965,1714083037034,-500.0,0.00010958,2]
[323549966,1714083037044,-500.0,0.00010958,2]
[323549967,1714083037053,-500.0,0.00010958,2]
[323549968,1714083037063,-1267.67,0.00010958,2]
[323549969,1714083037072,-500.0,0.00010958,2]
[323549970,1714083037082,-500.0,0.00010958,2]
[323549971,1714083037091,-500.0,0.00010958,2]
[323549972,1714083037100,-500.0,0.00010958,2]
[323549973,1714083037110,-500.0,0.00010958,2]
[323549974,1714083037119,-500.0,0.00010958,2]
[323549975,1714083037129,-500.0,0.00010958,2]
[323549976,1714083037139,-3271.62,0.00010958,2]
[323549977,1714083037148,-514.31066698,0.00010958,2]
[323549978,1714083037157,-500.0,0.00010958,2]
[323549979,1714083037167,-3143.34,0.00010958,2]
[323549980,1714083037176,-500.0,0.00010958,2]
[323549981,1714083037185,-500.0,0.00010958,2]
[323549982,1714083037194,-500.0,0.00010958,2]
[323549983,1714083037204,-500.0,0.00010958,2]
[323549984,1714083037213,-500.0,0.00010958,2]
[323549985,1714083037223,-500.0,0.00010958,2]
[323549986,1714083037233,-500.0,0.00010958,2]
[323549987,1714083037245,-500.0,0.00010958,2]
[323549988,1714083037256,-500.0,0.00010958,2]
[323549989,1714083037266,-500.0,0.00010958,2]
[323549990,1714083037276,-500.0,0.00010958,2]
[323549991,1714083037287,-500.0,0.00010958,2]
[323549992,1714083037297,-500.0,0.00010958,2]
[323549993,1714083037308,-500.0,0.00010958,2]
[323549994,1714083037318,-500.0,0.00010958,2]
[323549995,1714083037329,-500.0,0.00010958,2]
[323549996,1714083037338,-283.39356236,0.00010958,2]
[323549997,1714083037348,-500.0,0.00010958,2]
[323549998,1714083037357,-500.0,0.00010958,2]
[323549999,1714083037367,-500.0,0.00010958,2]
[323550000,1714083037377,-500.0,0.00010958,2]
[323550001,1714083037386,-500.0,0.00010958,2]
[323550002,1714083037396,-500.0,0.00010958,2]
[323550003,1714083037405,-803.74,0.00010958,2]
[323550004,1714083037415,-500.0,0.00010958,2]
[323550005,1714083037424,-1901.39,0.00010958,2]
[323550006,1714083037434,-500.0,0.00010958,2]
[323550007,1714083037443,-1005.32,0.00010958,2]
[323550008,1714083037452,-630.83,0.00010958,2]
[323550009,1714083037461,-500.0,0.00010958,2]
[323550010,1714083037470,-500.0,0.00010958,2]
[323550011,1714083037479,-368.01551377,0.00010958,2]
[323550012,1714083037488,-500.0,0.00010958,2]
[323550013,1714083037496,-1757.61,0.00010958,2]
[323550014,1714083037505,-500.0,0.00010958,2]
[323550015,1714083037514,-617.98,0.00010958,2]
[323550016,1714083037524,-500.0,0.00010958,2]
[323550017,1714083037533,-675.69,0.00010958,2]
[323550018,1714083037543,-500.0,0.00010958,2]
[323550019,1714083037552,-500.0,0.00010958,2]
[323550020,1714083037562,-469.18045221,0.00010958,2]
[323550021,1714083037571,-1065.43,0.00010958,2]
[323550022,1714083037581,-7510.03,0.00010958,2]
[323550023,1714083037590,-500.0,0.00010958,2]
[323550024,1714083037600,-500.0,0.00010958,2]
[323550025,1714083037610,-975.57,0.00010958,2]
[323550026,1714083037619,-500.0,0.00010958,2]
[323550027,1714083037630,-500.0,0.00010958,2]
[323550028,1714083037639,-500.0,0.00010958,2]
[323550029,1714083037648,-962.9,0.00010958,2]
[323550030,1714083037658,-3902.28,0.00010958,2]
[323550031,1714083037668,-500.0,0.00010958,2]
[323550032,1714083037678,-500.0,0.00010958,2]
[323550033,1714083037688,-500.0,0.00010958,2]
[323550034,1714083037698,-500.0,0.00010958,2]
[323550035,1714083037707,-500.0,0.00010958,2]
[323550036,1714083037717,-500.0,0.00010958,2]
[323550037,1714083037726,-2094.55,0.00010958,2]
[323550038,1714083037736,-868.2,0.00010958,2]
[323550039,1714083037745,-500.0,0.00010958,2]
[323550040,1714083037755,-922.85,0.00010958,2]
[323550041,1714083037765,-945.2,0.00010958,2]
[323550042,1714083037775,-500.0,0.00010958,2]
[323550043,1714083037784,-500.0,0.00010958,2]
[323550044,1714083037794,-1012.87,0.00010958,2]
[323550045,1714083037803,-500.0,0.00010958,2]
[323550046,1714083037813,-500.0,0.00010958,2]
[323550047,1714083037823,-500.0,0.00010958,2]
[323550049,1714083037832,-500.0,0.00010958,2]
[323550050,1714083037841,-500.0,0.00010958,2]
[323550051,1714083037851,-500.0,0.00010958,2]
[323550052,1714083037860,-500.0,0.00010958,2]
[323550053,1714083037870,-500.0,0.00010958,2]
[323550054,1714083037881,-500.0,0.00010958,2]
[323550056,1714083037890,-508.62,0.00010958,2]
[323550057,1714083037900,-1331.43,0.00010958,2]
[323550058,1714083037910,-622.03,0.00010958,2]
[323550059,1714083037919,-500.0,0.00010958,2]
[323550060,1714083037929,-500.0,0.00010958,2]
[323550061,1714083037939,-500.0,0.00010958,2]
[323550062,1714083037949,-500.0,0.00010958,2]
[323550063,1714083037958,-500.0,0.00010958,2]
[323550064,1714083037969,-284.11,0.00010958,2]
[323550065,1714083037980,-1209.68,0.00010958,2]
[323550066,1714083037990,-500.0,0.00010958,2]
[323550067,1714083037999,-500.0,0.00010958,2]
[323550068,1714083038009,-500.0,0.00010958,2]
[323550069,1714083038018,-1814.87,0.00010958,2]
[323550070,1714083038028,-500.0,0.00010958,2]
[323550071,1714083038037,-795.86,0.00010958,2]
[323550072,1714083038047,-500.0,0.00010958,2]
[323550073,1714083038057,-500.0,0.00010958,2]
[323550074,1714083038066,-662.59,0.00010958,2]
[323550075,1714083038076,-500.0,0.00010958,2]
[323550076,1714083038086,-1118.22,0.00010958,2]
[323550077,1714083038095,-500.0,0.00010958,2]
[323550078,1714083038105,-500.0,0.00010958,2]
[323550080,1714083038115,-910.33,0.00010958,2]
[323550081,1714083038124,-500.0,0.00010958,2]
[323550082,1714083038134,-1434.45,0.00010958,2]
[323550083,1714083038143,-500.0,0.00010958,2]
[323550084,1714083038153,-500.0,0.00010958,2]
[323550085,1714083038163,-500.0,0.00010958,2]
[323550086,1714083038173,-500.0,0.00010958,2]
[323550087,1714083038182,-500.0,0.00010958,2]
[323550088,1714083038192,-916.26,0.00010958,2]
[323550089,1714083038200,-500.0,0.00010958,2]
[323550090,1714083038209,-751.22,0.00010958,2]
[323550091,1714083038218,-500.0,0.00010958,2]
[323550092,1714083038227,-500.0,0.00010958,2]
[323550093,1714083038237,-500.0,0.00010958,2]
[323550094,1714083038249,-500.0,0.00010958,2]
[323550095,1714083038258,-500.0,0.00010958,2]
[323550096,1714083038268,-500.0,0.00010958,2]
[323550097,1714083038277,-1425.63,0.00010958,2]
[323550098,1714083038287,-500.0,0.00010958,2]
[323550099,1714083038295,-500.0,0.00010958,2]
[323550100,1714083038305,-500.0,0.00010958,2]
[323550101,1714083038314,-500.0,0.00010958,2]
[323550102,1714083038324,-1903.64,0.00010958,2]
[323550103,1714083038334,-573.12,0.00010958,2]
[323550104,1714083038343,-500.0,0.00010958,2]
[323550105,1714083038353,-500.0,0.00010958,2]
[323550106,1714083038362,-2167.88,0.00010958,2]
[323550107,1714083038371,-1112.29,0.00010958,2]
[323550108,1714083038381,-500.0,0.00010958,2]
[323550109,1714083038390,-500.0,0.00010958,2]
[323550110,1714083038399,-2109.73,0.00010958,2]
[323550111,1714083038408,-7496.19,0.00010958,2]
[323550112,1714083038418,-500.0,0.00010958,2]
[323550113,1714083038427,-637.43,0.00010958,2]
[323550114,1714083038436,-500.0,0.00010958,2]
[323550115,1714083038446,-2205.63,0.00010958,2]
[323550117,1714083038455,-500.0,0.00010958,2]
[323550119,1714083038464,-1083.42,0.00010958,2]
[323550121,1714083038473,-500.0,0.00010958,2]
[323550123,1714083038483,-1008.65,0.00010958,2]
[323550125,1714083038492,-582.99,0.00010958,2]
[323550127,1714083038501,-1875.35,0.00010958,2]
[323550128,1714083038510,-615.58,0.00010958,2]
[323550129,1714083038519,-500.0,0.00010958,2]
[323550130,1714083038529,-562.29,0.00010958,2]
[323550131,1714083038539,-511.43,0.00010958,2]
[323550132,1714083038548,-2210.58,0.00010958,2]
[323550133,1714083038558,-1145.16,0.00010958,2]
[323550134,1714083038567,-1339.95,0.00010958,2]
[323550136,1714083038577,-1548.68,0.00010958,2]
[323550138,1714083038586,-662.07,0.00010958,2]
[323550140,1714083038596,-500.0,0.00010958,2]
[323550142,1714083038606,-500.0,0.00010958,2]
[323550144,1714083038615,-1723.14,0.00010958,2]
[323550145,1714083038625,-7358.84,0.00010958,2]
[323550146,1714083038634,-500.0,0.00010958,2]
[323550147,1714083038644,-9432.85,0.00010958,2]
[323550148,1714083038653,-500.0,0.00010958,2]
[323550149,1714083038662,-1127.16,0.00010958,2]
[323550150,1714083038672,-500.0,0.00010958,2]
[323550151,1714083038681,-500.0,0.00010958,2]
[323550152,1714083038691,-500.0,0.00010958,2]
[323550153,1714083038899,-500.0,0.00010958,2]
[323550154,1714083038911,-500.0,0.00010958,2]
[323550155,1714083038920,-1040.93,0.00010958,2]
[323550156,1714083038929,-700.73,0.00010958,2]
[323550157,1714083038939,-2743.66,0.00010958,2]
[323550158,1714083038949,-4515.82,0.00010958,2]
[323550159,1714083038958,-714.2,0.00010958,2]
[323550160,1714083038967,-500.0,0.00010958,2]
[323550161,1714083038977,-790.76,0.00010958,2]
[323550162,1714083038987,-658.21,0.00010958,2]
[323550163,1714083038997,-500.0,0.00010958,2]
[323550164,1714083039006,-500.0,0.00010958,2]
[323550165,1714083039016,-500.0,0.00010958,2]
[323550166,1714083039025,-3104.49,0.00010958,2]
[323550167,1714083039035,-570.45,0.00010958,2]
[323550168,1714083039045,-500.0,0.00010958,2]
[323550169,1714083039054,-500.0,0.00010958,2]
[323550170,1714083039063,-500.0,0.00010958,2]
[323550171,1714083039072,-500.0,0.00010958,2]
[323550172,1714083039082,-500.0,0.00010958,2]
[323550173,1714083039092,-3680.57,0.00010958,2]
[323550174,1714083039101,-2686.93,0.00010958,2]
[323550175,1714083039111,-500.0,0.00010958,2]
[323550176,1714083039120,-1039.85,0.00010958,2]
[323550177,1714083039131,-500.0,0.00010958,2]
[323550178,1714083039140,-5186.5,0.00010958,2]
[323550179,1714083039149,-500.0,0.00010958,2]
[323550180,1714083039158,-500.0,0.00010958,2]
[323550181,1714083039167,-500.0,0.00010958,2]
[323550182,1714083039177,-500.0,0.00010958,2]
[323550183,1714083039186,-500.0,0.00010958,2]
[323550184,1714083039195,-725.97,0.00010958,2]
[323550185,1714083039204,-917.57,0.00010958,2]
[323550186,1714083039213,-795.73,0.00010958,2]
[323550187,1714083039222,-1010.42,0.00010958,2]
[323550188,1714083039231,-500.0,0.00010958,2]
[323550189,1714083039241,-500.0,0.00010958,2]
[323550190,1714083039252,-500.0,0.00010958,2]
[323550191,1714083039261,-1037.26,0.00010958,2]
[323550192,1714083039271,-552.96,0.00010958,2]
[323550193,1714083039280,-519.76,0.00010958,2]
[323550194,1714083039290,-668.22,0.00010958,2]
[323550195,1714083039299,-778.46,0.00010958,2]
[323550196,1714083039308,-898.24,0.00010958,2]
[323550197,1714083039318,-500.0,0.00010958,2]
[323550198,1714083039328,-500.0,0.00010958,2]
[323550199,1714083039338,-971.61,0.00010958,2]
[323550200,1714083039347,-500.0,0.00010958,2]
[323550201,1714083039356,-1127.54,0.00010958,2]
[323550202,1714083039365,-581.59,0.00010958,2]
[323550203,1714083039376,-500.0,0.00010958,2]
[323550204,1714083039385,-3470.52,0.00010958,2]
[323550205,1714083039394,-500.0,0.00010958,2]
[323550206,1714083039404,-500.0,0.00010958,2]
[323550207,1714083039413,-674.08,0.00010958,2]
[323550208,1714083039422,-500.0,0.00010958,2]
[323550209,1714083039432,-500.0,0.00010958,2]
[323550210,1714083039441,-852.19,0.00010958,2]
[323550211,1714083039450,-500.0,0.00010958,2]
[323550212,1714083039459,-500.0,0.00010958,2]
[323550213,1714083039468,-2122.83,0.00010958,2]
[323550214,1714083039478,-500.0,0.00010958,2]
[323550215,1714083039487,-2163.26,0.00010958,2]
[323550216,1714083039496,-500.0,0.00010958,2]
[323550217,1714083039505,-640.52,0.00010958,2]
[323550218,1714083039514,-725.95,0.00010958,2]
[323550219,1714083039523,-500.0,0.00010958,2]
[323550220,1714083039532,-1465.50366428,0.00010958,2]
[323550224,1714083040016,-154.83633572,0.00010958,2]
[323550225,1714083040026,-1852.2,0.00010958,2]
[323550226,1714083040035,-500.0,0.00010958,2]
[323550227,1714083040044,-1722.18,0.00010958,2]
[323550228,1714083040054,-856.9,0.00010958,2]
[323550229,1714083040063,-589.36,0.00010958,2]
[323550230,1714083040072,-549.11,0.00010958,2]
[323550231,1714083040082,-2825.86,0.00010958,2]
[323550232,1714083040091,-500.0,0.00010958,2]
[323550233,1714083040100,-500.0,0.00010958,2]
[323550234,1714083040109,-500.0,0.00010958,2]
[323550235,1714083040119,-500.0,0.00010958,2]
[323550236,1714083040129,-500.0,0.00010958,2]
[323550237,1714083040137,-500.0,0.00010958,2]
[323550238,1714083040146,-500.0,0.00010958,2]
[323550239,1714083040155,-500.0,0.00010958,2]
[323550240,1714083040164,-500.0,0.00010958,2]
[323550241,1714083040173,-771.92,0.00010958,2]
[323550242,1714083040183,-1442.76,0.00010958,2]
[323550243,1714083040192,-500.0,0.00010958,2]
[323550244,1714083040201,-500.0,0.00010958,2]
[323550245,1714083040210,-3376.2,0.00010958,2]
[323550246,1714083040222,-856.46,0.00010958,2]
[323550247,1714083040231,-500.0,0.00010958,2]
[323550248,1714083040240,-1417.79,0.00010958,2]
[323550249,1714083040253,-965.64,0.00010958,2]
[323550250,1714083040263,-500.0,0.00010958,2]
[323550251,1714083040272,-500.0,0.00010958,2]
[323550252,1714083040281,-3976.97,0.00010958,2]
[323550253,1714083040292,-842.44,0.00010958,2]
[323550254,1714083040302,-500.0,0.00010958,2]
[323550255,1714083040312,-500.0,0.00010958,2]
[323550256,1714083040323,-500.0,0.00010958,2]
[323550257,1714083040332,-500.0,0.00010958,2]
[323550258,1714083040342,-548.36,0.00010958,2]
[323550259,1714083040352,-500.0,0.00010958,2]
[323550260,1714083040362,-518.44,0.00010958,2]
[323550261,1714083040372,-5508.73,0.00010958,2]
[323550262,1714083040382,-500.0,0.00010958,2]
[323550263,1714083040392,-500.0,0.00010958,2]
[323550264,1714083040402,-995.07,0.00010958,2]
[323550265,1714083040412,-1255.4,0.00010958,2]
[323550266,1714083040421,-539.19,0.00010958,2]
[323550267,1714083040431,-526.5,0.00010958,2]
[323550268,1714083040441,-500.0,0.00010958,2]
[323550269,1714083040451,-694.57,0.00010958,2]
[323550270,1714083040462,-500.0,0.00010958,2]
[323550271,1714083040471,-500.0,0.00010958,2]
[323550272,1714083040481,-500.0,0.00010958,2]
[323550273,1714083040490,-500.0,0.00010958,2]
[323550274,1714083040500,-500.0,0.00010958,2]
[323550275,1714083040510,-500.0,0.00010958,2]
[323550276,1714083040519,-590.47,0.00010958,2]
[323550277,1714083040528,-2285.23,0.00010958,2]
[323550278,1714083040537,-500.0,0.00010958,2]
[323550279,1714083040547,-500.0,0.00010958,2]
[323550280,1714083040556,-500.0,0.00010958,2]
[323550281,1714083040566,-1247.29,0.00010958,2]
[323550282,1714083040575,-500.0,0.00010958,2]
[323550283,1714083040585,-17708.84,0.00010958,2]
[323550284,1714083040594,-1103.54,0.00010958,2]
[323550285,1714083040603,-500.0,0.00010958,2]
[323550286,1714083040612,-500.0,0.00010958,2]
[323550287,1714083040622,-500.0,0.00010958,2]
[323550288,1714083040632,-150.0,0.00010959,2]
[323550289,1714083040642,-749.63590295,0.00011,2]
[323550290,1714083040651,-872.86053366,0.00011,2]
[323550291,1714083040661,-3310.08,0.00011001,2]
[323550292,1714083040670,-500.0,0.00011232,2]
[323550293,1714083040679,-500.0,0.00011232,2]
[323550294,1714083040692,-500.0,0.00011232,2]
[323550295,1714083040702,-500.0,0.00011232,2]
[323550296,1714083040712,-443.44981884,0.00011232,2]
[323550297,1714083040722,-500.0,0.00011232,2]
[323550298,1714083040731,-230.42358285,0.00011232,2]
[323550299,1714083040745,-269.57641715,0.00011232,2]
[323550300,1714083040755,-500.0,0.00011232,2]
[323550301,1714083040765,-500.0,0.00011232,2]
[323550302,1714083040774,-500.0,0.00011232,2]
[323550303,1714083040784,-500.0,0.00011232,2]
[323550304,1714083040793,-500.0,0.00011232,2]
[323550305,1714083040803,-500.0,0.00011232,2]
[323550306,1714083040813,-500.0,0.00011232,2]
[323550307,1714083040823,-500.0,0.00011232,2]
[323550308,1714083040832,-500.0,0.00011232,2]
[323550309,1714083040841,-500.0,0.00011232,2]
[323550310,1714083040851,-500.0,0.00011232,2]
[323550311,1714083040861,-500.0,0.00011232,2]
[323550312,1714083040870,-500.0,0.00011232,2]
[323550313,1714083040881,-500.0,0.00011232,2]
[323550314,1714083040891,-500.0,0.00011232,2]
[323550315,1714083040900,-500.0,0.00011232,2]
[323550316,1714083040910,-500.0,0.00011232,2]
[323550317,1714083040919,-500.0,0.00011232,2]
[323550318,1714083040929,-374.27575753,0.00011232,2]
[323550319,1714083040938,-500.0,0.00011232,2]
[323550320,1714083040947,-500.0,0.00011232,2]
[323550321,1714083040957,-500.0,0.00011232,2]
[323550322,1714083040966,-500.0,0.00011232,2]
[323550323,1714083040976,-500.0,0.00011232,2]
[323550324,1714083040985,-500.0,0.00011232,2]
[323550325,1714083040994,-500.0,0.00011232,2]
[323550326,1714083041003,-500.0,0.00011232,2]
[323550327,1714083041012,-500.0,0.00011232,2]
[323550328,1714083041021,-500.0,0.00011232,2]
[323550329,1714083041031,-500.0,0.00011232,2]
[323550330,1714083041040,-500.0,0.00011232,2]
[323550331,1714083041050,-500.0,0.00011232,2]
[323550332,1714083041059,-500.0,0.00011232,2]
[323550333,1714083041068,-500.0,0.00011232,2]
[323550334,1714083041078,-500.0,0.00011232,2]
[323550335,1714083041087,-1009.45,0.00011232,2]
[323550336,1714083041097,-500.0,0.00011232,2]
[323550337,1714083041107,-500.0,0.00011232,2]
[323550338,1714083041117,-500.0,0.00011232,2]
[323550339,1714083041127,-500.0,0.00011232,2]
[323550340,1714083041137,-595.35,0.00011232,2]
[323550341,1714083041147,-500.0,0.00011232,2]
[323550342,1714083041157,-500.0,0.00011232,2]
[323550343,1714083041167,-500.0,0.00011232,2]
[323550344,1714083041178,-500.0,0.00011232,2]
[323550345,1714083041188,-500.0,0.00011232,2]
[323550346,1714083041198,-587.5,0.00011232,2]
[323550347,1714083041209,-500.0,0.00011232,2]
[323550348,1714083041220,-500.0,0.00011232,2]
[323550349,1714083041231,-500.0,0.00011232,2]
[323550350,1714083041242,-500.0,0.00011232,2]
[323550351,1714083041254,-500.0,0.00011232,2]
[323550352,1714083041264,-500.0,0.00011232,2]
[323550353,1714083041274,-500.0,0.00011232,2]
[323550354,1714083041284,-500.0,0.00011232,2]
[323550355,1714083041294,-500.0,0.00011232,2]
[323550356,1714083041303,-500.0,0.00011232,2]
[323550357,1714083041313,-500.0,0.00011232,2]
[323550358,1714083041326,-500.0,0.00011232,2]
[323550359,1714083041336,-343.84781232,0.00011232,2]
[323550360,1714083041352,-156.15218768,0.00011232,2]
[323550361,1714083041361,-500.0,0.00011232,2]
[323550363,1714083041371,-500.0,0.00011232,2]
[323550365,1714083041386,-500.0,0.00011232,2]
[323550367,1714083041396,-465.22544984,0.00011232,2]
[323550369,1714083041408,-34.77455016,0.00011232,2]
[323550371,1714083041418,-500.0,0.00011232,2]
[323550373,1714083041428,-500.0,0.00011232,2]
[323550375,1714083041438,-160.07834478,0.00011232,2]
[323550377,1714083041449,-339.92165522,0.00011232,2]
[323550379,1714083041458,-500.0,0.00011232,2]
[323550381,1714083041468,-500.0,0.00011232,2]
[323550383,1714083041477,-500.0,0.00011232,2]
[323550385,1714083041486,-500.0,0.00011232,2]
[323550387,1714083041495,-500.0,0.00011232,2]
[323550389,1714083041505,-500.0,0.00011232,2]
[323550391,1714083041515,-500.0,0.00011232,2]
[323550393,1714083041524,-131.14852118,0.00011232,2]
[323550396,1714083041536,-368.85147882,0.00011232,2]
[323550398,1714083041546,-500.0,0.00011232,2]
[323550400,1714083041555,-581.4325195,0.00011232,2]
[323550402,1714083041567,-528.0774805,0.00011232,2]
[323550404,1714083041576,-1209.04,0.00011232,2]
[323550406,1714083041585,-500.0,0.00011232,2]
[323550408,1714083041595,-500.0,0.00011232,2]
[323550410,1714083041604,-1033.9,0.00011232,2]
[323550412,1714083041614,-1080.84,0.00011232,2]
[323550414,1714083041623,-500.0,0.00011232,2]
[323550416,1714083041641,-496.52680711,0.00011232,2]
[323550418,1714083041653,-3.47319289,0.00011232,2]
[323550420,1714083041662,-257.8908352,0.00011232,2]
[323550423,1714083041673,-242.1091648,0.00011232,2]
[323550425,1714083041681,-16.0197382,0.00011232,2]
[323550427,1714083041693,-266.27999998,0.00011232,2]
[323550429,1714083041704,-217.70026182,0.00011232,2]
[323550431,1714083041713,-500.0,0.00011232,2]
[323550433,1714083041722,-34.74562098,0.00011232,2]
[323550435,1714083041733,-299.68,0.00011232,2]
[323550437,1714083041744,-165.57437902,0.00011232,2]
[323550440,1714083041753,-500.0,0.00011232,2]
[323550442,1714083041762,-1206.59,0.00011232,2]
[323550444,1714083041772,-500.0,0.00011232,2]
[323550446,1714083041782,-500.0,0.00011232,2]
[323550448,1714083041791,-152.83562098,0.00011232,2]
[323550450,1714083041803,-347.16437902,0.00011232,2]
[323550452,1714083041812,-500.0,0.00011232,2]
[323550454,1714083041821,-500.0,0.00011232,2]
[323550456,1714083041830,-500.0,0.00011232,2]
[323550458,1714083041839,-500.0,0.00011232,2]
[323550460,1714083041849,-500.0,0.00011232,2]
[323550462,1714083041858,-500.0,0.00011232,2]
[323550464,1714083041868,-500.0,0.00011232,2]
[323550466,1714083041881,-406.12297399,0.00011232,2]
[323550468,1714083041894,-93.87702601,0.00011232,2]
[323550470,1714083041903,-500.0,0.00011232,2]
[323550472,1714083041913,-500.0,0.00011232,2]
[323550474,1714083041923,-500.0,0.00011232,2]
[323550476,1714083041932,-500.0,0.00011232,2]
[323550478,1714083041941,-500.0,0.00011232,2]
[323550491,1714083042177,-500.0,0.00011232,2]
[323550493,1714083042186,-500.0,0.00011232,2]
[323550495,1714083042196,-500.0,0.00011232,2]
[323550497,1714083042205,-500.0,0.00011232,2]
[323550499,1714083042214,-500.0,0.00011232,2]
[323550501,1714083042223,-500.0,0.00011232,2]
[323550503,1714083042233,-500.0,0.00011232,2]
[323550505,1714083042243,-500.0,0.00011232,2]
[323550507,1714083042254,-500.0,0.00011232,2]
[323550509,1714083042264,-500.0,0.00011232,2]
[323550511,1714083042273,-555.59,0.00011232,2]
[323550513,1714083042281,-500.0,0.00011232,2]
[323550516,1714083042292,-500.0,0.00011232,2]
[323550518,1714083042301,-500.0,0.00011232,2]
[323550520,1714083042310,-500.0,0.00011232,2]
[323550522,1714083042319,-500.0,0.00011232,2]
[323550524,1714083042330,-500.0,0.00011232,2]
[323550526,1714083042340,-500.0,0.00011232,2]
[323550527,1714083042349,-500.0,0.00011232,2]
[323550529,1714083042358,-976.0667749,0.00011232,2]
[323550533,1714083042379,-179.0132251,0.00011232,2]
[323550535,1714083042388,-416.42685747,0.00011232,2]
[323550537,1714083042399,-83.57314253,0.00011232,2]
[323550539,1714083042409,-410.53173861,0.00011232,2]
[323550541,1714083042420,-89.46826139,0.00011232,2]
[323550543,1714083042429,-1025.74,0.00011232,2]
[323550545,1714083042438,-500.0,0.00011232,2]
[323550547,1714083042447,-500.0,0.00011232,2]
[323550549,1714083042456,-500.0,0.00011232,2]
[323550551,1714083042465,-500.0,0.00011232,2]
[323550553,1714083042474,-1185.76,0.00011232,2]
[323550555,1714083042483,-500.0,0.00011232,2]
[323550557,1714083042492,-306.46711091,0.00011232,2]
[323550559,1714083042503,-193.53288909,0.00011232,2]
[323550561,1714083042513,-513.31,0.00011232,2]
[323550563,1714083042522,-585.53,0.00011232,2]
[323550565,1714083042531,-500.0,0.00011232,2]
[323550567,1714083042540,-500.0,0.00011232,2]
[323550569,1714083042549,-905.84,0.00011232,2]
[323550571,1714083042559,-500.0,0.00011232,2]
[323550573,1714083042568,-48.16992644,0.00011232,2]
[323550575,1714083042579,-451.83007356,0.00011232,2]
[323550578,1714083042589,-500.0,0.00011232,2]
[323550580,1714083042598,-500.0,0.00011232,2]
[323550582,1714083042607,-500.0,0.00011232,2]
[323550584,1714083042617,-500.0,0.00011232,2]
[323550585,1714083042627,-500.0,0.00011232,2]
[323550587,1714083042637,-666.41,0.00011232,2]
[323550589,1714083042646,-500.0,0.00011232,2]
[323550591,1714083042655,-500.0,0.00011232,2]
[323550593,1714083042665,-500.0,0.00011232,2]
[323550595,1714083042674,-531.38,0.00011232,2]
[323550596,1714083042683,-500.0,0.00011232,2]
[323550597,1714083042692,-332.0611661,0.00011232,2]
[323550598,1714083042704,-167.9388339,0.00011232,2]
[323550599,1714083042714,-777.79,0.00011232,2]
[323550600,1714083042723,-1041.68,0.00011232,2]
[323550601,1714083042732,-10.0187661,0.00011232,2]
[323550602,1714083042743,-489.9812339,0.00011232,2]
[323550603,1714083042752,-500.0,0.00011232,2]
[323550604,1714083042761,-52.1864861,0.00011232,2]
[323550605,1714083042777,-447.8135139,0.00011232,2]